Cogmind - Beta 9.6 @@@ ROGUE MODE // 2020.04.25 @ 13:02:09 Player: TravelDemon Result: Destroyed by as-13426 with Assembled Maul Performance ------------- Evolutions (0) 0 Regions Visited (0) 0 Robots Destroyed (0) 0 Value Destroyed (0) 0 Prototype IDs (0) 0 Alien Tech Used (0) 0 Bonus (0) 0 TOTAL SCORE: 0 Bonus ------- None Cogmind --------- Core Integrity 0/250 Matter 300/300 Energy 100/100 System Corruption 2% Temperature Cool (0) Movement Core (50) Location -11/Scrapyard Parts ------- > --- POWER (1) -------- (None) > --- PROPULSION (2) --- (None) > --- UTILITY (2) ------ (None) > --- WEAPON (2) ------- (None) > --- INVENTORY (4) ---- Ion Engine Aluminum Leg Aluminum Leg Light Assault Rifle Peak State ------------ > --- POWER ------------ Light Ion Engine > --- PROPULSION ------- Light Treads Light Treads > --- UTILITY ---------- Small Storage Unit > --- WEAPON ----------- Medium Laser Medium Laser > --- INVENTORY -------- (None) [Rating: 6] Favorites ----------- Power Light Ion Engine Engine Light Ion Engine Propulsion Light Treads Treads Light Treads Utility Small Storage Unit Storage Small Storage Unit Weapon Medium Laser Energy Gun Medium Laser Build | -11 ------- Run | Scr Slots Evolved . | . Power . | . Propulsion . | . Utility . | . Weapon . | . Parts Attached 6 | 6 Power 1 | 1 Engine 1 | 1 Core . | . Reactor . | . Propulsion 2 | 2 Treads 2 | 2 Leg . | . Wheel . | . Hover . | . Flight . | . Utility 1 | 1 Device . | . Storage 1 | 1 Processor . | . Hackware . | . Protection . | . Artifact . | . Weapon 2 | 2 Energy Gun 2 | 2 Energy Cannon . | . Ballistic Gun . | . Ballistic Cannon . | . Launcher . | . Special Weapon . | . Impact Weapon . | . Slashing Weapon . | . Piercing Weapon . | . Special Melee Weapon . | . Unidentified Prototypes . | . Parts Lost 1 | 1 Power 1 | 1 Propulsion . | . Utility . | . Weapon . | . Highest Loss Streak 1 | 1 Average Slot Usage (%) . | . Naked Turns . | . Heaviest Build 11 | 11 Greatest Support 3 | 3 Greatest Overweight (x) 3 | 3 Average Overweight (x) 1 | 1 Largest Inventory Capacity 6 | 6 Average Capacity 5 | 5 Most Carried 4 | 4 Average Carried 3 | 3 Final Capacity 4 | 4 Final Carried 4 | 4 Class Distribution -------------------- None Dominant Class ---------------- None Resources | -11 ----------- Run | Scr Matter Collected 250 | 250 Remotely . | . Salvage Created . | . Parts . | . Haulers Intercepted . | . Recyclers Shooed . | . Parts Field Recycled . | . Retrieved Matter . | . Parts Self-Destructed . | . Prevented . | . Kills | -11 ------- Run | Scr Combat Hostiles Destroyed . | . Classes Destroyed . | . Best Kill Streak . | . Combat Bots Only . | . Max Kills in Single Turn . | . Gunslinging . | . Exploded . | . Melee . | . Uniques/NPCs Destroyed . | . Combat | -11 -------- Run | Scr Damage Taken 409 | 409 Core 268 | 268 Absorbed by Shields . | . Core Remaining (%) . | . Volleys Fired . | . Largest . | . Hottest . | . Shots Fired . | . Gun . | . Cannon . | . Launcher . | . Special . | . Kinetic . | . Thermal . | . Explosive . | . Electromagnetic . | . Robot Hit Streak . | . Robot Miss Streak . | . Penetration Max . | . Secondary Targets . | . Shots Hit Robots . | . Core Hits . | . Critical Hits . | . Critical Kills . | . Critical Parts Destroyed . | . Melee Attacks . | . Impact . | . Slashing . | . Piercing . | . Sneak Attacks . | . Combat Hostiles . | . Follow-up Attacks . | . Damage Inflicted 4 | 4 Guns . | . Cannons . | . Explosions . | . Melee . | . Ramming 4 | 4 Kinetic . | . Thermal . | . Explosive . | . Electromagnetic . | . Impact . | . Slashing . | . Piercing . | . Highest Corruption 2 | 2 Average Corruption 2 | 2 Corruption Purged . | . Effects 5 | 5 Message Errors 4 | 4 Energy Discharges 1 | 1 Overload Shots . | . Overflow Damage . | . Projectiles . | . Explosions . | . Melee . | . Knockbacks . | . Impact . | . Kinetic . | . Secondary . | . Self-Inflicted Damage 2 | 2 Shots . | . Rammed 2 | 2 Targets Rammed 2 | 2 Kicked . | . Crushed . | . Highest Temperature . | . Average Temperature . | . Received Heat Transfer 120 | 120 Siege Activations . | . Robots Corrupted . | . Combat Hostiles . | . Parts Fried . | . Impact Corruptions . | . Robots Melted . | . Combat Hostiles . | . Parts Melted . | . Heat Transferred . | . Parts Sabotaged . | . Parts Stolen . | . Parts Stripped . | . Power Chain Reactions . | . Missiles Intercepted . | . Alert | -11 ------- Run | Scr Peak Influence 15 | 15 Average Influence . | . Maximum Alert Level . | . Low Security (%) 100 | 100 Level 1 . | . Level 2 . | . Level 3 . | . Level 4 . | . Level 5 . | . High Security . | . Max Security . | . Squads Dispatched . | . Investigation . | . Extermination . | . Reinforcement . | . Assault . | . Garrison . | . Intercept . | . Construction Impeded . | . Haulers Reinforced . | . Stealth | -11 --------- Run | Scr Distress Signals . | . Communications Jammed . | . Distress Signals . | . Times Spotted 14 | 14 Peak Tracking Total 7 | 7 Tactical Retreats 5 | 5 Traps | -11 ------- Run | Scr Traps Triggered . | . Indirectly . | . Trap Hack Attempts . | . Triggered . | . Disarmed . | . Reprogrammed . | . Reused . | . Traps Extracted . | . Installed . | . Triggered . | . Machines | -11 ---------- Run | Scr Machines Disabled . | . Max in Single Turn . | . Machines Sabotaged . | . Garrisons Compromised . | . Overloaded Fab Kills . | . Fab Network Shutdowns . | . Hacking | -11 --------- Run | Scr Machines Accessed . | . Terminals . | . Fabricators . | . Repair Stations . | . Recycling Units . | . Scanalyzers . | . Garrison Access . | . Total Hacks . | . Successful . | . Failed . | . Catastrophic . | . Database Lockouts . | . Manual . | . Terminals . | . Fabricators . | . Repair Stations . | . Recycling Units . | . Scanalyzers . | . Garrison Access . | . Terminal Hacks . | . Fabricator Hacks . | . Repair Station Hacks . | . Recycling Unit Hacks . | . Scanalyzer . | . Garrison Access Hacks . | . Unauthorized Hacks . | . Terminals . | . Fabricators . | . Repair Stations . | . Recycling Units . | . Scanalyzers . | . Garrison Access . | . Data Cores Recovered . | . Used . | . Hacking Detections . | . Full Trace Events . | . Feedback Events . | . Feedback Blocked . | . Robot Schematics Acquired . | . Robots Built . | . Matter . | . Time . | . Total Robot Build Rating . | . Part Schematics Acquired . | . Parts Built . | . Matter . | . Time . | . Total Part Build Rating . | . Parts Repaired . | . Time . | . Parts Recycled . | . Recycled Matter . | . Retrieved Matter . | . Retrieved Components . | . Parts Scanalyzed . | . Part Schematics Acquired . | . Parts Damaged . | . Bothacking | -11 ------------ Run | Scr Used RIF Installer . | . Robots Hacked . | . Non-combat . | . Combat . | . Robot Hacks Applied . | . Relay Couplers Released . | . Robots Rewired . | . Allies Hacked . | . Hacks Repelled . | . Allies | -11 -------- Run | Scr Total Allies . | . Largest Group . | . Highest-Rated Group . | . Highest-Rated Ally . | . Total Orders . | . Ally Attacks . | . Total Damage . | . Kills . | . Allies Corrupted . | . Allies Melted . | . Intel | -11 ------- Run | Scr Robot Analysis Total . | . Derelict Logs Recovered . | . Drone Launches . | . Drone Recoveries . | . Exploration | -11 ------------- Run | Scr Turns Passed 3551 | 3551 Spaces Moved 1022 | 1022 Core 1022 | 1022 Treads . | . Legs . | . Wheels . | . Hover . | . Flight . | . Fastest Speed 50 | 50 Average Speed 137 | 137 Slowest Speed 200 | 200 Overloaded Moves . | . Propulsion Burnouts . | . Robots Hopped . | . Cave-ins Triggered . | . Exploration Rate (%) 88 | 88 Regions Visited . Branch Regions . Pre-discovered Areas . | . Known Exits Taken . | . Unknown Exits Taken . | . Scrap Searched . | . Spaces Dug . | . Terrain Destroyed . | . Melee . | . Projectile . | . AOE . | . Actions | -11 --------- Run | Scr Total 3164 | 3164 Wait 2130 | 2130 Move 1022 | 1022 Hop . | . Pick Up 4 | 4 Fast Attach 6 | 6 Attach . | . Detach . | . Swap . | . Drop . | . Fire . | . Melee . | . Ram 2 | 2 Kick . | . Crush . | . Escape Stasis . | . Rewire . | . Trap . | . Miscellaneous . | . Route ------- -11/Scrapyard (discovered 1 exit: [*Mat]) History --------- Turn | Location | Event 7 | -11/Scrapyard | Discovered new exit (range 15) 3066 | -11/Scrapyard | Assembled infested the area 3095 | -11/Scrapyard | Released all parts (5) 3512 | -11/Scrapyard | Core integrity fell below 50% 3520 | -11/Scrapyard | Core integrity fell below 20% 3552 | -11/Scrapyard | Destroyed by as-13426 with Assembled Maul Last Messages --------------- 03099_ as-58689 destroyed. 03100_ HSPBALDVOWSKWLOQ:7W,NCWJCQ1PCL&F/P4,B 03102_ as-15162 sneak attacks. 03102_ K-01 Serf destroyed. 03110_ as-22737 sneak attacks. 03110_ T-07 Excavator system corrupted by crushing effect. 03110_ T-07 Excavator knocked back. 03111_ T-07 Excavator system terminally corrupted. 03180_ T-07 Excavator is excavating. 03322_ TLM7 RJ|ZVHZB0YYWI,Z8U 03326_ T-07 Excavator is excavating. 03359_ System corrupted: Energy discharge (-37). 03396_ T-07 Excavator is excavating. 03400_ 0IRW%R24Y|ESB8AYAHC3V3F3Z 03504_ Acquired 23 matter. 03505_ Acquired 24 matter. 03508_ Acquired 17 matter. 03510_ Acquired 35 matter. 03514_ >:<6KADQFURJIZWFS#ABTCTE,Z&6ACSGT R# Map ----- +----------------------------------------------------+ | | | | | | | | | | | | | | | | | | | | | | | ???????????????????????????????????????????????? | | ???????????????????????????????????????????????? | | ???????????????????????????????????????????????? | | ???????????????????????????????????????????????? | | ???????????????????????????????????????????????? | | ??????????????????????#####?##?????????????????? | | ?????????????????????## "## ##????????????????? | | ?????????????????????# " #????????????????? | | ?????????????????????# " #????????????????? | | ?????????????????????# " #????????????????? | | ?????????????????????## " #????????????????? | | ?????????????#####????# " #????????????????? | | ???#??????#### #????# ###????????????????? | | ???# ###### ######## a##?#####????????????? | | ???# # # ?#@a#? #????????????? | | ???# # # #=%# #????????????? | | ######## ## # # !# #????????????? | | # # #????????????? | | # # # #????????????? | | ########### #### # # ####????????????? | | ??????????# #??###?# #?######????????????? | | #######???# #??????#a #?? #????????????? | | #???# #??????# #? #????????????? | | #???# #??????# # #????????????? | | #???# #??????# #????????????? | | #???############### # #????????????? | | #??????????# # ####????????????? | | #??????????# % ###########?????????? | | #??????????# ##### # #?????????? | | #??????????# #???# # #?????????? | | #######???######## #???# # #?????????? | | #??????# #???# ! #?????????? | | #??????# # #???# %# #?????????? | | #??????# # #???# !# #?????????? | | #??????# ?# #???# # #?????????? | | #??????# ?# #???# # #?????????? | | ####??????# ??#% #???# ###########?????????? | | #?????????#####??# #???# #???????????????????? | | #######??????????# #???# #???????????????????? | +----------------------------------------------------+ Best States ------------- Heat Dissipation 25 Energy Generation 5 Energy Capacity 125 Matter Stores 300 Matter Capacity 300 Sight Range 16 Terrain Scan Density 10 Evasion (%) 50 Item Schematics ----------------- None Robot Schematics ------------------ None Fabricated ------------ Nothing Alien Tech Used ----------------- None Achievements -------------- Curiosity Killed The Cat Challenges ------------ None Game ------ Seed MediumMasterGenerator Manual? 0 Play Time 00:09:00 Cumulative 29.0 hours Start 2020.04.25 @ 12:57:29 End 2020.04.25 @ 13:02:09 Sessions 0 Manual Loads 0 Difficulty Rogue Special Mode None Game No. 51 Rogue 49 Adventurer 0 Explorer 2 Win Type - Total 0 Types 0/0/0/0/0/0/0 Lore% 25 Gallery% 33 Achievement% 26 Wizard Run 0 Options --------- ASCII 0 Keyboard 1 Movement Numpad Keybinds 0 Fullscreen 2 Font 18/SmallcapsGlow Map View 76x50 Tactical HUD 1 Map Filters NONE Filters NONE Steam 1 RUN: 1a7ab1fa-3ddc-4bb6-93ad-43cb62bc2158